bitfinex/quotes_SOLUSD_20241107
["timestamp","ask_amount","ask_price","bid_price","bid_amount"]
[1730945319191,25.10796755,190.94,190.87,25.10796755]
[1730945320014,6.5742,190.95,190.81,25.23345755]
[1730945320015,25.10796755,190.88,190.81,25.23345755]
[1730945320303,25.10796755,190.86,190.79,25.10796755]
[1730945320504,25.10796755,190.85,190.79,25.10796755]
[1730945320902,25.10796755,190.84,190.78,25.10796755]
[1730945321788,25.10796755,190.85,190.78,25.10796755]
[1730945321987,25.10796755,190.85,190.79,25.10796755]
[1730945323095,25.10796755,190.87,190.81,25.10796755]
[1730945323490,25.10796755,190.86,190.8,25.10796755]
[1730945323701,25.10796755,190.86,190.79,25.10796755]
[1730945323899,25.10796755,190.85,190.79,25.10796755]
[1730945324309,25.10796755,190.87,190.81,25.10796755]
[1730945324827,25.10796755,190.86,190.8,25.10796755]
[1730945326407,25.10796755,190.85,190.79,25.10796755]
[1730945326813,25.10796755,190.87,190.81,25.10796755]
[1730945326995,40.63556755,190.88,190.82,25.10796755]
[1730945327193,25.10796755,190.87,190.81,25.10796755]
[1730945328031,25.10796755,190.87,190.8,25.10796755]
[1730945328496,25.10796755,190.87,190.81,25.10796755]
[1730945329001,40.63556755,190.88,190.82,25.10796755]
[1730945330405,15.5267,190.93,190.86,25.10796755]
[1730945330614,25.10796755,190.92,190.86,25.10796755]
[1730945330904,15.5267,190.93,190.84,25.10796755]
[1730945330905,25.10796755,190.9,190.84,25.10796755]
[1730945331610,0.5785332,190.97,190.87,25.10796755]
[1730945331797,0.5785332,190.97,190.91,25.10796755]
[1730945332004,25.68650075,190.97,190.91,25.10796755]
[1730945332396,25.10796755,190.96,190.9,25.10796755]
[1730945332697,0.5785332,190.97,190.85,0.12549]
[1730945332698,25.68650075,190.97,190.91,25.10796755]
[1730945332898,25.68650075,190.97,190.9,25.10796755]
[1730945333426,0.5785332,190.97,190.94,25.10796755]
[1730945333626,0.5785332,190.97,190.96,25.10796755]
[1730945333925,0.5785332,190.97,190.95,25.10796755]
[1730945334706,0.5785332,190.97,190.94,25.10796755]
[1730945335506,0.5785332,190.97,190.95,25.10796755]
[1730945335705,0.5785332,190.97,190.96,25.10796755]
[1730945337131,0.5785332,190.97,190.95,25.10796755]
[1730945337622,0.5785332,190.97,190.94,25.10796755]
[1730945338211,0.5785332,190.97,190.93,25.10796755]
[1730945338521,0.5785332,190.97,190.86,0.1]
[1730945338724,0.5785332,190.97,190.94,25.10796755]
[1730945339927,0.5785332,190.97,190.96,25.10796755]
[1730945340233,0.5785332,190.97,190.95,25.10796755]
[1730945340719,0.5785332,190.97,190.96,25.10796755]
[1730945341409,0.5785332,190.97,190.95,15.66338929]
[1730945341931,0.5785332,190.97,190.96,15.66338929]
[1730945342832,0.5785332,190.97,190.95,15.66338929]
[1730945344532,0.5785332,190.97,190.96,15.66338929]
[1730945344735,0.5785332,190.97,190.95,15.66338929]
[1730945344907,0.5785332,190.97,190.88,0.1]
[1730945345107,0.5785332,190.97,190.95,15.66338929]
[1730945345319,0.5785332,190.97,190.96,15.66338929]
[1730945346420,0.5785332,190.97,190.95,15.66338929]
[1730945346705,0.5785332,190.97,190.9,15.66338929]
[1730945346706,0.5785332,190.97,190.96,15.66338929]
[1730945346929,0.5785332,190.97,190.96,15.78887929]
[1730945347133,15.751,191.08,190.97,0.22549]
[1730945347334,6.3999,191.09,191.07,15.66338929]
[1730945347630,15.66338929,191.12,191.07,15.66338929]
[1730945348133,0.5785332,191.15,191.11,15.66338929]
[1730945348302,0.5785332,191.15,191.14,15.66338929]
[1730945348507,0.5785332,191.15,191.14,15.78887929]
[1730945348720,0.5785332,191.15,191.14,0.12549]
[1730945348928,0.5785332,191.15,191.06,23.876884]
[1730945349134,0.5785332,191.15,191.14,15.66338929]
[1730945350224,0.5785332,191.15,191.14,15.78887929]
[1730945350811,6.177,191.31,191.14,31.35318929]
[1730945351015,6.177,191.31,191.24,15.66338929]
[1730945351016,15.66338929,191.3,191.24,15.66338929]
[1730945351215,6.177,191.31,191.23,15.66338929]
[1730945351412,24.99007412,191.28,191.22,24.99007412]
[1730945352029,24.99007412,191.26,191.15,0.12549]
[1730945352233,24.99007412,191.27,191.21,24.99007412]
[1730945352813,24.99007412,191.3,191.24,24.99007412]
[1730945353015,6.177,191.31,191.26,24.99007412]
[1730945353417,31.16707412,191.31,191.25,24.99007412]
[1730945353613,31.16707412,191.31,191.14,15.6898]
[1730945353614,6.177,191.31,191.15,20.0]
[1730945353823,24.99007412,191.29,191.23,24.99007412]
[1730945354032,24.99007412,191.28,191.22,24.99007412]
[1730945354413,6.177,191.31,191.23,24.99007412]
[1730945354613,24.99007412,191.29,191.23,24.99007412]
[1730945354809,24.99007412,191.28,191.22,24.99007412]
[1730945356826,24.99007412,191.21,191.14,24.99007412]
[1730945357523,24.99007412,191.2,191.14,24.99007412]
[1730945357730,24.99007412,191.19,191.13,24.99007412]
[1730945357911,24.99007412,191.21,191.14,24.99007412]
[1730945358112,24.99007412,191.21,191.15,24.99007412]
[1730945358337,24.99007412,191.23,191.17,24.99007412]
[1730945358542,24.99007412,191.24,191.18,24.99007412]
[1730945359016,24.99007412,191.23,191.17,24.99007412]
[1730945359223,24.99007412,191.24,191.18,24.99007412]
[1730945359929,24.99007412,191.26,191.2,24.99007412]
[1730945360439,24.99007412,191.25,191.19,24.99007412]
[1730945361426,24.99007412,191.25,191.18,24.99007412]
[1730945361615,24.99007412,191.24,191.18,24.99007412]
[1730945361934,24.99007412,191.24,191.17,24.99007412]
[1730945362145,24.99007412,191.23,191.17,24.99007412]
[1730945362638,24.99007412,191.22,191.16,24.99007412]
[1730945362831,24.99007412,191.22,191.15,24.99007412]
[1730945363029,24.99007412,191.22,191.16,24.99007412]
[1730945363334,53.99445812,191.3,191.09,16.3202]
[1730945363335,24.99007412,191.2,191.09,16.3202]
[1730945363637,53.99445812,191.3,191.09,16.3202]
[1730945363638,24.99007412,191.25,191.19,24.99007412]
[1730945363839,24.99007412,191.26,191.2,24.99007412]
[1730945364419,24.99007412,191.26,191.19,24.99007412]
[1730945364638,24.99007412,191.24,191.18,24.99007412]
[1730945364943,24.99007412,191.25,191.18,24.99007412]
[1730945365117,24.99007412,191.26,191.19,24.99007412]
[1730945365318,24.99007412,191.25,191.19,24.99007412]
[1730945365559,24.99007412,191.24,191.17,24.99007412]
[1730945365847,24.99007412,191.24,191.18,24.99007412]
[1730945366045,24.99007412,191.25,191.18,24.99007412]
[1730945366347,24.99007412,191.24,191.18,24.99007412]
[1730945367239,24.99007412,191.24,191.17,24.99007412]
[1730945367625,24.99007412,191.24,191.18,24.99007412]
[1730945368033,24.99007412,191.24,191.17,24.99007412]
[1730945369135,24.99007412,191.24,191.18,24.99007412]
[1730945370224,24.99007412,191.24,191.17,24.99007412]
[1730945370543,24.99007412,191.23,191.17,24.99007412]
[1730945370734,24.99007412,191.21,191.15,24.99007412]
[1730945370931,24.99007412,191.2,191.13,24.99007412]
[1730945371641,24.99007412,191.19,191.12,24.99007412]
[1730945371940,24.99007412,191.17,191.1,24.99007412]
[1730945372753,24.99007412,191.18,191.11,24.99007412]
[1730945373456,22.12185867,191.21,191.14,15.63705867]
[1730945373649,15.63705867,191.19,191.13,15.63705867]
[1730945373953,15.63705867,191.19,191.12,15.63705867]
[1730945374423,15.63705867,191.2,191.14,15.63705867]
[1730945374628,22.12185867,191.21,191.14,15.63705867]
[1730945374931,15.63705867,191.19,191.12,15.63705867]
[1730945375336,15.63705867,191.18,191.12,15.63705867]
[1730945375644,15.63705867,191.16,191.1,15.63705867]
[1730945375950,15.63705867,191.17,191.1,15.63705867]
[1730945376330,15.63705867,191.18,191.12,15.63705867]
[1730945376525,15.63705867,191.17,191.11,15.63705867]
[1730945377451,15.63705867,191.16,191.04,15.8974]
[1730945377651,15.63705867,191.17,191.1,15.63705867]
[1730945377944,15.63705867,191.17,191.04,15.8974]
[1730945377945,15.63705867,191.17,191.11,15.63705867]
[1730945378134,15.63705867,191.19,191.12,15.63705867]
[1730945378333,6.4848,191.21,191.04,15.9974]
[1730945378334,15.63705867,191.2,191.14,15.63705867]
[1730945378520,22.12185867,191.21,191.15,15.63705867]
[1730945378724,15.63705867,191.19,191.13,15.63705867]
[1730945379325,15.63705867,191.19,191.12,15.63705867]
[1730945380650,22.12185867,191.21,191.15,15.63705867]
[1730945380949,22.12185867,191.21,191.05,20.0]
[1730945380950,15.63705867,191.2,191.14,15.63705867]
[1730945381130,15.63705867,191.18,191.11,15.63705867]
[1730945381645,6.3799,191.11,190.97,6.0551]
[1730945381834,6.3799,191.11,190.95,15.7235]
[1730945381835,15.63705867,191.05,190.98,15.63705867]
[1730945382037,15.63705867,191.02,190.93,6.0551]
[1730945382230,0.1,191.05,190.88,6.0551]
[1730945382432,0.1,191.05,190.91,15.63705867]
[1730945382433,15.63705867,190.98,190.91,15.63705867]
[1730945382754,15.63705867,190.98,190.92,15.63705867]
[1730945382935,15.63705867,191.0,190.93,15.63705867]
[1730945383630,15.63705867,191.03,190.97,15.63705867]
[1730945383932,15.63705867,191.04,190.97,15.63705867]
[1730945384132,15.63705867,191.05,190.99,15.63705867]
[1730945384346,15.63705867,191.0,190.86,15.7235]
[1730945384643,15.63705867,190.99,190.92,15.63705867]
[1730945385327,0.1,191.05,190.87,0.12549]
[1730945385328,15.63705867,190.98,190.87,0.12549]
[1730945385525,15.63705867,190.94,190.84,11.98433517]
[1730945385825,15.63705867,190.95,190.89,15.63705867]
[1730945386034,15.63705867,190.97,190.91,15.63705867]
[1730945386347,15.63705867,190.98,190.91,15.63705867]
[1730945386556,15.63705867,190.97,190.91,15.63705867]
[1730945386733,15.63705867,190.96,190.89,15.63705867]
[1730945387227,15.63705867,190.95,190.88,15.63705867]
[1730945387428,25.07793941,190.95,190.88,25.07793941]
[1730945387830,25.07793941,190.94,190.87,25.07793941]
[1730945388234,25.07793941,190.88,190.73,6.0784]
[1730945388437,25.07793941,190.88,190.82,25.07793941]
[1730945388642,21.554,190.93,190.74,0.1]
[1730945388643,25.07793941,190.9,190.84,25.07793941]
[1730945388845,25.07793941,190.9,190.83,25.07793941]
[1730945389058,25.07793941,190.89,190.82,25.07793941]
[1730945389356,25.07793941,190.9,190.84,25.07793941]
[1730945389664,25.07793941,190.9,190.74,0.22549]
[1730945389665,25.07793941,190.9,190.83,25.07793941]
[1730945389839,25.07793941,190.89,190.82,25.07793941]
[1730945390563,25.07793941,190.89,190.83,25.07793941]
[1730945390763,25.07793941,190.91,190.84,25.07793941]
[1730945392083,25.07793941,190.9,190.83,25.07793941]
[1730945392377,25.07793941,190.89,190.82,25.07793941]
[1730945392675,25.07793941,190.88,190.82,25.07793941]
[1730945393273,25.07793941,190.88,190.81,25.07793941]
[1730945393451,25.07793941,190.88,190.82,25.07793941]
[1730945394475,25.07793941,190.91,190.85,25.07793941]
[1730945394852,25.07793941,190.92,190.86,25.07793941]
[1730945395047,25.07793941,190.91,190.85,25.07793941]
[1730945395254,25.07793941,190.89,190.83,25.07793941]
[1730945395465,25.07793941,190.86,190.8,25.07793941]
[1730945395753,25.07793941,190.88,190.81,25.07793941]
[1730945396478,25.07793941,190.85,190.79,25.07793941]
[1730945397153,25.07793941,190.86,190.79,25.07793941]
[1730945398071,25.07793941,190.84,190.77,25.07793941]
[1730945398265,25.07793941,190.84,190.78,25.07793941]
[1730945399172,25.07793941,190.86,190.79,25.07793941]
[1730945400050,25.07793941,190.85,190.79,25.07793941]
[1730945400257,25.07793941,190.85,190.78,0.12549]
[1730945400258,25.07793941,190.82,190.76,25.07793941]
[1730945400457,25.07793941,190.81,190.75,25.07793941]
[1730945400757,25.07793941,190.83,190.79,10.5643]
[1730945400957,25.07793941,190.82,190.79,10.5643]
[1730945401570,25.07793941,190.81,190.79,10.5643]
[1730945401768,48.85482341,190.8,190.79,10.5643]
[1730945401973,73.93276282,190.8,190.79,10.5643]
[1730945402169,74.05825282,190.8,190.79,10.5643]
[1730945402969,74.15825282,190.8,190.79,10.5643]
[1730945403167,73.93276282,190.8,190.79,10.5643]
[1730945403882,74.03276282,190.8,190.79,10.5643]
[1730945404953,73.93276282,190.8,190.79,10.5643]
[1730945405159,48.85482341,190.8,190.79,10.5643]
[1730945405765,48.95482341,190.8,190.79,10.5643]
[1730945405967,74.15825282,190.8,190.79,10.5643]
[1730945406371,74.05825282,190.8,190.79,10.5643]
[1730945406778,74.15825282,190.8,190.79,10.5643]
[1730945407364,0.1,190.77,190.68,0.5785332]
[1730945407565,25.07793941,190.71,190.68,0.5785332]
[1730945409263,25.07793941,190.72,190.68,0.5785332]
[1730945410175,25.07793941,190.73,190.68,0.5785332]
[1730945411371,15.70876019,190.73,190.68,0.5785332]
[1730945411563,0.1,190.81,190.68,0.5785332]
[1730945411564,15.70876019,190.77,190.71,15.70876019]
[1730945411763,22.2122,190.83,190.68,0.5785332]
[1730945411764,15.70876019,190.78,190.72,15.70876019]
[1730945412280,15.70876019,190.77,190.7,15.70876019]
[1730945414070,15.70876019,190.79,190.72,15.70876019]
[1730945414271,23.776884,190.78,190.72,15.70876019]
[1730945414591,39.48564419,190.78,190.72,15.70876019]
[1730945415590,23.776884,190.78,190.72,15.70876019]
[1730945415966,15.70876019,190.79,190.73,15.70876019]
[1730945416168,23.776884,190.78,190.73,15.70876019]
[1730945416575,23.776884,190.78,190.72,15.70876019]
[1730945416990,39.48564419,190.78,190.72,15.70876019]
[1730945417372,15.70876019,190.77,190.71,15.70876019]
[1730945418475,0.1,190.8,190.74,15.70876019]
[1730945418476,15.70876019,190.8,190.74,15.70876019]
[1730945418678,23.776884,190.79,190.74,15.70876019]
[1730945419282,23.776884,190.79,190.73,15.70876019]
[1730945419283,39.48564419,190.79,190.73,15.70876019]
[1730945420095,15.70876019,190.82,190.75,15.70876019]
[1730945420299,15.70876019,190.82,190.76,15.70876019]
[1730945420605,37.82096019,190.83,190.77,15.70876019]
[1730945421495,23.776884,190.82,190.77,15.70876019]
[1730945421795,15.70876019,190.87,190.81,15.70876019]
[1730945421998,15.70876019,190.91,190.85,15.70876019]
[1730945422391,15.70876019,190.9,190.84,15.70876019]
[1730945422597,15.70876019,190.89,190.77,6.3291]
[1730945422789,15.70876019,190.88,190.81,15.70876019]
[1730945423097,15.70876019,190.86,190.79,15.70876019]
[1730945423305,15.70876019,190.82,190.76,15.70876019]
[1730945423596,39.48564419,190.8,190.74,15.70876019]
[1730945424384,39.48564419,190.8,190.73,15.70876019]
[1730945424590,39.48564419,190.8,190.75,15.70876019]
[1730945424591,23.776884,190.8,190.75,15.70876019]
[1730945424785,22.02966019,190.82,190.76,15.70876019]
[1730945425396,39.48564419,190.81,190.75,15.70876019]
[1730945425988,23.776884,190.79,190.74,15.70876019]
[1730945426206,39.48564419,190.79,190.73,15.70876019]
[1730945426390,39.48564419,190.79,190.72,15.70876019]
[1730945427002,15.70876019,190.78,190.72,15.70876019]
[1730945427217,23.776884,190.76,190.71,15.70876019]
[1730945427509,39.48564419,190.76,190.7,15.70876019]
[1730945428093,15.1681,190.83,190.74,15.70876019]
[1730945428313,15.1681,190.83,190.69,0.12549]
[1730945428518,30.87686019,190.83,190.77,15.70876019]
[1730945429195,15.1681,190.83,190.78,15.70876019]
[1730945429420,23.776884,190.82,190.78,15.70876019]
[1730945430293,7.90828507,190.86,190.7,31.12676019]
[1730945430294,6.5687,190.86,190.8,15.70876019]
[1730945430711,23.776884,190.85,190.8,15.70876019]
[1730945430917,23.776884,190.85,190.81,15.70876019]
[1730945431123,23.776884,190.85,190.8,15.70876019]
[1730945431325,6.5687,190.86,190.8,25.10146667]
[1730945431619,5.2371,190.95,190.74,0.12549]
[1730945431620,25.10146667,190.89,190.83,25.10146667]
[1730945432015,25.10146667,190.89,190.74,0.22549]
[1730945432016,25.10146667,190.88,190.82,25.10146667]
[1730945432603,25.10146667,190.87,190.81,25.10146667]
[1730945433617,25.10146667,190.87,190.8,25.10146667]
[1730945433805,25.10146667,190.87,190.81,25.10146667]
[1730945434006,23.776884,190.86,190.81,25.10146667]
[1730945434405,25.10146667,190.89,190.83,25.10146667]
[1730945434725,23.776884,190.88,190.83,25.10146667]
[1730945435807,23.776884,190.88,190.82,25.10146667]
[1730945436211,48.87835067,190.88,190.81,25.10146667]
[1730945436410,25.10146667,190.87,190.81,25.10146667]
[1730945437723,23.776884,190.86,190.8,25.10146667]
[1730945438307,25.10146667,190.87,190.81,25.10146667]
[1730945438308,23.776884,190.87,190.81,25.10146667]
[1730945438615,23.776884,190.89,190.83,25.10146667]
[1730945438798,48.87835067,190.89,190.83,25.10146667]
[1730945439003,48.87835067,190.87,190.8,25.10146667]
[1730945439219,23.776884,190.86,190.82,25.10146667]
[1730945439831,23.776884,190.87,190.81,25.10146667]
[1730945440414,23.776884,190.87,190.83,25.10146667]
[1730945440632,23.776884,190.89,190.84,25.10146667]
[1730945441805,5.44880608,190.9,190.88,25.10146667]
[1730945442016,6.1374,190.96,190.83,6.6392]
[1730945442311,25.10146667,191.03,190.95,25.10146667]
[1730945442523,3.90404637,191.01,190.97,25.10146667]
[1730945442722,11.95522132,191.02,190.97,25.10146667]
[1730945443432,1.29902809,191.02,191.0,25.10146667]
[1730945443725,31.36266667,191.1,191.01,25.10146667]
[1730945443908,25.10146667,191.05,190.99,25.10146667]
[1730945444231,25.10146667,191.05,190.94,6.1308]
[1730945444534,25.10146667,191.03,190.97,25.10146667]
[1730945444829,25.10146667,191.0,190.94,25.10146667]
[1730945445007,23.776884,190.99,190.93,25.10146667]
[1730945446727,23.776884,190.99,190.94,25.10146667]
[1730945447109,23.776884,190.99,190.93,25.10146667]
[1730945447309,25.10146667,191.06,190.98,25.10146667]
[1730945447528,6.3612,191.1,190.97,25.10146667]
[1730945447529,25.10146667,191.04,190.97,25.10146667]
[1730945447707,25.10146667,191.01,190.95,25.10146667]
[1730945448519,25.10146667,191.02,190.96,25.10146667]
[1730945448827,48.87835067,191.02,190.96,25.10146667]
[1730945449032,23.776884,191.02,190.96,25.10146667]
[1730945449235,23.776884,191.02,190.9,25.22695667]
[1730945449236,25.10146667,191.01,190.95,25.10146667]
[1730945449412,25.10146667,190.98,190.91,25.10146667]
[1730945449814,25.10146667,191.01,190.94,25.10146667]
[1730945450115,23.776884,190.98,190.89,6.1308]
[1730945450524,25.10146667,190.97,190.9,25.10146667]
[1730945450911,23.776884,190.96,190.9,25.10146667]
[1730945451234,25.10146667,190.95,190.89,25.10146667]
[1730945451407,25.10146667,190.94,190.88,25.10146667]
[1730945451609,25.10146667,190.94,190.87,25.10146667]
[1730945451812,48.87835067,190.96,190.89,25.10146667]
[1730945452728,48.87835067,190.96,190.88,25.10146667]
[1730945452729,48.87835067,190.94,190.88,25.10146667]
[1730945452930,25.10146667,190.89,190.81,15.1346]
[1730945453138,25.10146667,190.9,190.83,25.10146667]
[1730945453444,15.68262221,190.91,190.84,15.68262221]
[1730945453614,15.68262221,190.93,190.86,15.68262221]
[1730945453938,15.68262221,190.94,190.87,15.68262221]
[1730945454239,39.45950621,190.9,190.83,15.68262221]
[1730945454611,23.776884,190.91,190.85,15.68262221]
[1730945454817,39.45950621,190.91,190.84,15.68262221]
[1730945456331,15.68262221,190.9,190.83,15.68262221]
[1730945456536,39.45950621,190.91,190.84,15.68262221]
[1730945457651,15.68262221,190.9,190.83,15.68262221]
[1730945459045,15.68262221,190.9,190.79,6.0459]
[1730945459046,23.776884,190.91,190.85,15.68262221]
[1730945459214,15.68262221,190.94,190.87,15.68262221]
[1730945459425,15.68262221,190.94,190.81,0.12549]
[1730945459426,15.68262221,190.92,190.85,15.68262221]
[1730945459753,15.68262221,190.9,190.83,15.68262221]
[1730945460245,15.68262221,190.9,190.84,15.68262221]
[1730945460551,15.68262221,190.92,190.85,15.68262221]
[1730945460857,15.68262221,190.89,190.79,6.0459]
[1730945461029,15.68262221,190.89,190.83,15.68262221]
[1730945461354,15.68262221,190.89,190.82,15.68262221]
[1730945461948,15.68262221,190.88,190.81,15.68262221]
[1730945462158,23.776884,190.89,190.82,15.68262221]
[1730945462447,15.68262221,190.93,190.86,15.68262221]
[1730945462632,15.68262221,190.94,190.88,15.68262221]
[1730945462838,6.4626,190.95,190.89,15.68262221]
[1730945463028,31.72942221,190.96,190.89,15.68262221]
[1730945463227,15.68262221,190.93,190.86,15.68262221]
[1730945463531,15.68262221,190.95,190.89,15.68262221]
[1730945463742,15.68262221,190.96,190.9,15.68262221]
[1730945464134,15.68262221,190.97,190.91,15.68262221]
[1730945464442,15.68262221,190.98,190.91,15.68262221]
[1730945464653,22.14522221,190.99,190.92,15.68262221]
[1730945465144,6.4626,190.99,190.93,15.68262221]
[1730945465349,31.74502221,191.01,190.94,15.68262221]
[1730945465540,15.68262221,191.0,190.94,15.68262221]
[1730945465734,15.68262221,191.01,190.94,15.68262221]
[1730945466426,15.68262221,191.02,190.96,15.68262221]
[1730945466628,31.50032221,191.06,190.99,15.68262221]
[1730945466828,31.50032221,191.06,190.91,6.4347]
[1730945466829,15.68262221,191.08,191.01,15.68262221]
[1730945467040,16.1672,191.12,191.04,15.68262221]
[1730945467041,15.68262221,191.1,191.04,15.68262221]
[1730945467246,15.68262221,191.11,191.05,15.68262221]
[1730945467751,15.68262221,191.12,191.05,15.68262221]
[1730945467954,15.68262221,191.12,191.06,15.68262221]
[1730945468168,15.68262221,191.15,191.08,15.68262221]
[1730945468545,15.68262221,191.14,191.07,15.68262221]
[1730945469079,15.68262221,191.16,191.1,15.68262221]
[1730945469278,15.68262221,191.16,191.09,15.68262221]
[1730945469451,25.02359549,191.16,191.09,25.02359549]
[1730945470265,25.02359549,191.14,191.07,25.02359549]
[1730945470705,25.02359549,191.12,191.02,6.3187]
[1730945470851,25.02359549,191.13,191.06,25.02359549]
[1730945471757,23.776884,191.17,191.07,25.02359549]
[1730945471962,25.02359549,191.14,191.07,25.02359549]
[1730945472267,25.02359549,191.1,191.04,25.02359549]
[1730945472455,25.02359549,191.09,191.03,25.02359549]
[1730945472762,25.02359549,191.1,191.04,25.02359549]
[1730945473662,6.6041,191.27,191.1,22.0889]
[1730945473844,25.02359549,191.24,191.18,25.02359549]
[1730945474053,25.02359549,191.25,191.18,25.02359549]
[1730945474365,25.02359549,191.23,191.17,25.02359549]
[1730945475169,25.02359549,191.2,191.13,25.02359549]
[1730945475481,25.02359549,191.18,191.11,25.02359549]
[1730945475987,25.02359549,191.18,191.12,25.02359549]
[1730945477086,25.02359549,191.2,191.13,25.02359549]
[1730945477892,25.02359549,191.19,191.13,25.02359549]
[1730945478066,25.02359549,191.24,191.17,25.02359549]
[1730945478274,6.6041,191.27,191.11,0.12549]
[1730945478275,25.02359549,191.25,191.19,25.02359549]
[1730945478696,25.02359549,191.24,191.18,25.02359549]
[1730945478985,25.02359549,191.24,191.11,0.12549]
[1730945479190,25.02359549,191.24,191.18,25.02359549]
[1730945479582,25.02359549,191.23,191.16,25.02359549]
[1730945479773,25.02359549,191.22,191.16,25.02359549]
[1730945479984,25.02359549,191.23,191.17,25.02359549]
[1730945480669,25.02359549,191.22,191.16,25.02359549]
[1730945480877,23.902374,191.27,191.15,25.02359549]
[1730945481068,25.02359549,191.21,191.15,25.02359549]
[1730945481568,25.02359549,191.18,191.12,25.02359549]
[1730945482393,25.02359549,191.19,191.13,25.02359549]
[1730945482568,25.02359549,191.18,191.12,25.02359549]
[1730945483500,25.02359549,191.16,191.1,25.02359549]
[1730945483670,25.02359549,191.17,191.11,25.02359549]
[1730945484170,25.02359549,191.15,191.09,25.02359549]
[1730945484905,25.02359549,191.14,191.08,25.02359549]
[1730945485070,25.02359549,191.14,191.07,25.02359549]
[1730945485270,25.02359549,191.14,191.01,6.1679]
[1730945485271,25.02359549,191.11,191.01,6.1679]
[1730945485494,25.02359549,191.09,191.03,25.02359549]
[1730945485796,25.02359549,191.12,191.06,25.02359549]
[1730945486191,25.02359549,191.12,191.05,25.02359549]
[1730945486796,25.02359549,191.15,191.09,25.02359549]
[1730945486973,25.02359549,191.12,191.05,25.02359549]
[1730945487179,25.02359549,191.1,191.03,25.02359549]
[1730945487570,25.02359549,191.1,191.04,25.02359549]
[1730945488807,25.02359549,191.1,191.03,25.02359549]
[1730945489389,25.02359549,191.11,191.04,25.02359549]
[1730945489582,25.02359549,191.09,191.02,25.02359549]
[1730945489902,25.02359549,191.08,191.02,25.02359549]
[1730945490401,25.02359549,191.1,191.03,25.02359549]
[1730945490616,25.02359549,191.09,191.03,25.02359549]
[1730945490774,25.02359549,191.08,191.02,25.02359549]
[1730945491192,25.02359549,191.07,191.0,25.02359549]
[1730945491398,25.02359549,191.06,191.0,25.02359549]
[1730945491609,25.02359549,191.06,190.99,25.02359549]
[1730945491787,25.02359549,191.06,191.0,25.02359549]
[1730945492104,25.02359549,191.06,190.95,0.12549]
[1730945492105,25.02359549,191.08,191.02,25.02359549]
[1730945492276,25.02359549,191.09,191.03,25.02359549]
[1730945492475,25.02359549,191.09,191.02,25.02359549]
[1730945492680,25.02359549,191.08,191.02,25.02359549]
[1730945493182,25.02359549,191.05,190.99,25.02359549]
[1730945493378,15.3564,191.09,190.98,25.02359549]
[1730945493602,25.02359549,191.05,190.98,25.02359549]
[1730945493982,25.02359549,191.04,190.98,25.02359549]
[1730945494402,25.02359549,191.05,190.98,25.02359549]
[1730945494703,25.02359549,191.05,190.99,25.02359549]
[1730945495299,25.02359549,191.05,190.98,25.02359549]
[1730945495708,25.02359549,191.04,190.98,25.02359549]
[1730945495874,25.02359549,191.04,190.97,25.02359549]
[1730945496603,25.02359549,191.02,190.95,25.02359549]
[1730945496903,25.02359549,191.0,190.93,25.02359549]
[1730945497106,25.02359549,190.98,190.92,25.02359549]
[1730945497313,25.02359549,190.98,190.91,25.02359549]
[1730945498312,25.02359549,190.94,190.89,5.45310938]
[1730945498501,25.02359549,190.93,190.86,25.02359549]
[1730945499511,25.02359549,190.96,190.89,25.02359549]
[1730945500818,25.02359549,190.96,190.9,25.02359549]
[1730945500990,25.02359549,190.96,190.89,25.02359549]
[1730945501690,25.02359549,190.95,190.89,25.02359549]
[1730945501887,25.02359549,190.94,190.88,25.02359549]
[1730945502199,25.02359549,190.93,190.87,25.02359549]
[1730945502597,25.02359549,190.94,190.88,25.02359549]
[1730945503113,25.02359549,190.95,190.88,25.02359549]
[1730945503317,25.02359549,190.94,190.88,25.02359549]
[1730945503606,25.02359549,190.93,190.86,25.02359549]
[1730945503806,25.02359549,190.94,190.87,25.02359549]
[1730945504014,25.02359549,190.95,190.88,25.02359549]
[1730945504394,25.02359549,190.95,190.89,25.02359549]
[1730945504605,47.55219549,190.98,190.92,25.02359549]
[1730945504810,31.22089549,190.98,190.92,25.02359549]
[1730945505500,25.02359549,190.97,190.9,25.02359549]
[1730945506531,25.02359549,190.96,190.89,25.02359549]
[1730945506825,25.02359549,190.95,190.89,25.02359549]
[1730945507026,25.02359549,190.95,190.88,25.02359549]
[1730945508138,25.02359549,190.94,190.87,25.02359549]
[1730945508424,25.02359549,190.93,190.87,25.02359549]
[1730945509800,25.02359549,190.97,190.91,25.02359549]
[1730945510023,31.22089549,190.98,190.91,25.02359549]
[1730945510424,31.22089549,190.98,190.92,25.02359549]
[1730945510730,25.02359549,191.0,190.93,25.02359549]
[1730945511027,25.02359549,191.01,190.95,25.02359549]
[1730945511223,25.02359549,191.02,190.96,25.02359549]
[1730945511536,6.5989,191.03,190.97,25.02359549]
[1730945511829,6.5989,191.03,190.91,0.12549]
[1730945511830,25.02359549,191.02,190.91,0.12549]
[1730945512131,25.02359549,191.02,190.95,25.02359549]